Workbook

Sheet Spans
A1: File: | B1: =Poles!J3 -> 0 | G1: =Poles!I3 -> 0 | I1: =Trees!N3 -> 00:00:00 | R1: User Inputs | S1: Formula | AA1: Long 1 | AB1: Lat 1 | AC1: Elev 1 | AE1: Long 2 | AF1: Lat 2 | AG1: Elev 2 | AI1: Elev 1 | AJ1: Elev 2 | AK1: Pole1 Height | AL1: Pole2 Height
A2: Threat Level | B2: # Spans | C2: (miles) | D2: Weight Factor | E2: Risk Score | F2: Tree≤6ft | H2: Table Group: | I2: 0 | J2: objectid | K2: latitude | L2: longitude | M2: HFTD | N2: bst_tag | O2: ast_tag | P2: span_tag | Q2: span_lgth | R2: Span Shape | S2: Span ID | T2: Cond. Size | U2: Wind Factor | V2: No. Fail Trees | W2: Threat Level | X2: Tree≤6ft Count | Y2: ≤6ft Level | AA2: (°) | AB2: (°) | AC2: (m) | AE2: (°) | AF2: (°) | AG2: (m) | AI2: (ft) | AJ2: (ft) | AK2: (ft) | AL2: (ft) | AN2: "ft" to "m": | AO2: 0.3048 | AQ2: "ft" to "mile": | AR2: =1/5280 -> 0.0001893939394
A3: 3 | B3: =COUNTIFS(W$3:W$100000,A3) -> 0 | C3: =SUMIF(W$3:W$100000,A3,Q$3:Q$100000)/5280 -> 0 | D3: 1 | E3: =B3/B$7*D3 -> 0 | F3: =COUNTIFS(Y$3:Y$100000,A3) -> 0 | H3: Span Shape | R3: 2 | S3: =J3 -> 0 | T3: 0 | U3: =Chk_wind($C$8,AA3,AB3,AE3,AF3) -> 1 | V3: =COUNTIFS(TreeRange,S3,TreeFail,"Yes")*U3 -> 0 | W3: =IF(Q3<1,0,_xlfn.IFS(V3>15,3,V3>5,2,V3>0,1,V3=0,0)) -> 0 | X3: =COUNTIFS(TreeRange,S3,TreeOffset,"Yes") -> 0 | Y3: =IF(Q3<1,0,_xlfn.IFS(X3>15,3,X3>5,2,X3>0,1,X3=0,0)) -> 0 | AA3: =IFERROR(VLOOKUP($N3,PoleRange,3,FALSE),0) -> 0 | AB3: =IFERROR(VLOOKUP($N3,PoleRange,2,FALSE),0) -> 0 | AC3: =(AI3+AK3-1)*0.3048 -> -0.3048 | AE3: =IFERROR(VLOOKUP($O3,PoleRange,3,FALSE),0) -> 0 | AF3: =IFERROR(VLOOKUP($O3,PoleRange,2,FALSE),0) -> 0 | AG3: =(AJ3+AL3-1)*0.3048 -> -0.3048 | AI3: =IFERROR(VLOOKUP($N3,PoleRange,6,FALSE),0) -> 0 | AJ3: =IFERROR(VLOOKUP($O3,PoleRange,6,FALSE),0) -> 0 | AK3: =IFERROR(VLOOKUP($N3,PoleRange,7,FALSE),0) -> 0 | AL3: =IFERROR(VLOOKUP($O3,PoleRange,7,FALSE),0) -> 0
A4: 2 | B4: =COUNTIFS(W$3:W$100000,A4) -> 0 | C4: =SUMIF(W$3:W$100000,A4,Q$3:Q$100000)/5280 -> 0 | D4: 0.75 | E4: =B4/B$7*D4 -> 0 | F4: =COUNTIFS(Y$3:Y$100000,A4) -> 0 | H4: 2 | I4: Tangent
A5: 1 | B5: =COUNTIFS(W$3:W$100000,A5) -> 0 | C5: =SUMIF(W$3:W$100000,A5,Q$3:Q$100000)/5280 -> 0 | D5: 0.5 | E5: =B5/B$7*D5 -> 0 | F5: =COUNTIFS(Y$3:Y$100000,A5) -> 0 | H5: 3 | I5: 45° Turn
A6: 0 | B6: =COUNTIFS(W$3:W$100000,A6) -> 1 | C6: =SUMIF(W$3:W$100000,A6,Q$3:Q$100000)/5280 -> 0 | D6: 0 | E6: =B6/B$7*D6 -> 0 | F6: =COUNTIFS(Y$3:Y$100000,A6) -> 1 | H6: 4 | I6: 90° Turn
A7: Total: | B7: =SUM(B3:B6) -> 1 | C7: =SUM(C3:C6) -> 0 | E7: =SUM(E3:E6) -> 0 | H7: 5 | I7: T-Tap
B8: Dominant Wind Dir: | C8: -1 | D8: deg (-1 = Ignore wind effect) | H8: 6 | I8: X-Tap
B9: KML Elevation: | C9: -1 | D9: (-1 = Use GL, # = Add to LiDAR)
B10: Pole Height Adj: | C10: 0 | D10: ft (to raise allowable)
B11: Tier 2-3 Only? | C11: 1 | D11: (1=Yes, 0=No)
A12: FEA Tables:
A13: 0 | B13: Zero Allowable
A14: 1 | B14: ='FEA Tables'!C2 -> Composite, #2 Cu XLPE, Douglas Fir
A15: 2 | B15: ='FEA Tables'!C16 -> Composite, #2 Cu XLPE, Pine
A16: 3 | B16: ='FEA Tables'!C30 -> Composite, #2 Cu XLPE, Oak
A17: 4 | B17: ='FEA Tables'!C44 -> Composite, #2 Cu XLPE, Blue Gum / Eucalyptus
A18: 5 | B18: ='FEA Tables'!C58 -> Composite, 1/0 ACSR XLPE, Douglas Fir
A19: 6 | B19: ='FEA Tables'!C72 -> Composite, 1/0 ACSR XLPE, Pine
A20: 7 | B20: ='FEA Tables'!C86 -> Composite, 1/0 ACSR XLPE, Oak
A21: 8 | B21: ='FEA Tables'!C100 -> Composite, 1/0 ACSR XLPE, Blue Gum / Eucalyptus
A22: 9 | B22: ='FEA Tables'!C114 -> Composite, 397.5 AAC XLPE, Douglas Fir
A23: 10 | B23: ='FEA Tables'!C128 -> Composite, 397.5 AAC XLPE, Pine
A24: 11 | B24: ='FEA Tables'!C142 -> Composite, 397.5 AAC XLPE, Oak
A25: 12 | B25: ='FEA Tables'!C156 -> Composite, 397.5 AAC XLPE, Blue Gum / Eucalyptus
A26: 13 | B26: ='FEA Tables'!C170 -> Composite, 715.5 AAC XLPE, Douglas Fir
A27: 14 | B27: ='FEA Tables'!C184 -> Composite, 715.5 AAC XLPE, Pine
A28: 15 | B28: ='FEA Tables'!C198 -> Composite, 715.5 AAC XLPE, Oak
A29: 16 | B29: ='FEA Tables'!C212 -> Composite, 715.5 AAC XLPE, Blue Gum / Eucalyptus
A30: 17 | B30: ='FEA Tables'!C226 -> 0
A31: 18 | B31: ='FEA Tables'!C240 -> 0
A32: 19 | B32: ='FEA Tables'!C254 -> 0
A33: 20 | B33: ='FEA Tables'!C268 -> 0
A34: 21 | B34: ='FEA Tables'!C282 -> Wood, #6 Cu, Douglas Fir
A35: 22 | B35: ='FEA Tables'!C296 -> Wood, #6 Cu, Pine
A36: 23 | B36: ='FEA Tables'!C310 -> Wood, #6 Cu, Oak
A37: 24 | B37: ='FEA Tables'!C324 -> Wood, #6 Cu, Blue Gum / Eucalyptus
A38: 25 | B38: ='FEA Tables'!C338 -> Wood, 4 (6/1) ACSR, Douglas Fir
A39: 26 | B39: ='FEA Tables'!C352 -> Wood, 4 (6/1) ACSR, Pine
A40: 27 | B40: ='FEA Tables'!C366 -> Wood, 4 (6/1) ACSR, Oak
A41: 28 | B41: ='FEA Tables'!C380 -> Wood, 4 (6/1) ACSR, Blue Gum / Eucalyptus
A42: 29 | B42: ='FEA Tables'!C394 -> Wood, 2 (7/1) ACSR, Douglas Fir
A43: 30 | B43: ='FEA Tables'!C408 -> Wood, 2 (7/1) ACSR, Pine
A44: 31 | B44: ='FEA Tables'!C422 -> Wood, 2 (7/1) ACSR, Oak
A45: 32 | B45: ='FEA Tables'!C436 -> Wood, 2 (7/1) ACSR, Blue Gum / Eucalyptus
A46: 33 | B46: ='FEA Tables'!C450 -> 0
A47: 34 | B47: ='FEA Tables'!C464 -> 0
A48: 35 | B48: ='FEA Tables'!C478 -> 0
A49: 36 | B49: ='FEA Tables'!C492 -> 0
A50: 37 | B50: ='FEA Tables'!C506 -> 0
A51: 38 | B51: ='FEA Tables'!C520 -> 0
A52: 39 | B52: ='FEA Tables'!C534 -> Wood, 715.5 AAC, Oak
A53: 40 | B53: ='FEA Tables'!C548 -> Wood, 715.5 AAC, Blue Gum / Eucalyptus

Sheet Poles
A2: objectid | B2: str_geotag | C2: latitude | D2: longitude | E2: x_coordinate | F2: y_coordinate | G2: elevation | H2: height | I2: line_id | J2: line_name | K2: HFTD

Sheet Trees
O1: VLOOKUP
A2: ObjectID | B2: TreeID | C2: Latitude | D2: Longitude | E2: Height | F2: Offset | G2: Dist2Wire | H2: Top3Species | I2: PrimarySpecies | J2: Overstrike | K2: SpanTag | L2: HFTD | M2: Fall-In | N2: AcqDate | O2: Span ID | P2: Span Length | Q2: Shape | R2: FEA Table | S2: Allowable | T2: Tree Fail? | U2: Offset≤6ft?
O3: =VLOOKUP($K3,SpanRange,4,FALSE) ->  | P3: =VLOOKUP($K3,SpanRange,2,FALSE) ->  | Q3: =VLOOKUP($K3,SpanRange,3,FALSE) ->  | R3: =Find_Table(Spans!$I$2,I3) -> 0 | S3: =IF(R3=0,Spans!$C$10,VLOOKUP(P3,INDIRECT("Table"&R3),Q3,TRUE)) -> 0 | T3: =IFERROR(IF((-1)*J3>S3,"Yes","No"),"No Match") -> No | U3: =IF(F3<=6,"Yes","No") -> Yes

Sheet FEA Tables
I1: TABLE | J1: 1 | Q1: Conductor | R1: Breaking Strength | U1: Tree | V1: Failure | W1: Density | X1: Tip Radius | Y1: Ixx | Z1: MOR | AA1: Static Force Breaking Branch Length (ft)
B2: FEA Table: | C2: Composite, #2 Cu XLPE, Douglas Fir | I2: Span Shape: | J2: 2 | K2: 3 | L2: 4 | M2: 5 | N2: 6 | Q2: Doc 059626 | R2: (lbf) | U2: Species | V2: Mode | W2: (lb/ft3) | X2: (in) | Y2: (in4) | Z2: (psi) | AA2: #6 Cu | AB2: 4 (6/1) ACSR | AC2: 2 (7/1) ACSR | AD2: 715.5 AAC | AE2: #2 HD Cu XLPE | AF2: 1/0 ACSR XLPE | AG2: 397.5 AAC XLPE | AH2: 715.5 AAC XLPE
B3: Span | C3: 3 | I3: Span | J3: Adjusted Allowable Overstrike Length (ft) | Q3: #6 Cu | R3: 1010 | U3: Douglas Fir | V3: Trunk | W3: 33 | X3: 3 | Y3: =X3^4*PI()/4 -> 63.61725124 | Z3: 7700 | AA3: =$Z3*$Y3/$X3/$R$3/12 -> 13.47230018 | AB3: =$Z3*$Y3/$X3/$R$4/12 -> 7.315603861 | AC3: =$Z3*$Y3/$X3/$R$5/12 -> 3.932665659 | AD3: =$Z3*$Y3/$X3/$R$6/12 -> 1.063048686 | AE3: =$Z3*$Y3/$X3/$R$7/12 -> 6.07456392 | AF3: =$Z3*$Y3/$X3/$R$8/12 -> 3.270919034 | AG3: =$Z3*$Y3/$X3/$R$9/12 -> 2.014661413 | AH3: =$Z3*$Y3/$X3/$R$10/12 -> 1.118998617
B4: Len (ft) | C4: Tangent | D4: 45° Turn | E4: 90° Turn | F4: T-Tap | G4: X-Tap | I4: Len (ft) | J4: Tangent | K4: 45° Turn | L4: 90° Turn | M4: T-Tap | N4: X-Tap | Q4: 4 (6/1) ACSR | R4: 1860 | U4: Pine | V4: Trunk | W4: 30 | X4: 3 | Y4: =X4^4*PI()/4 -> 63.61725124 | Z4: 5100 | AA4: =$Z4*$Y4/$X4/$R$3/12 -> 8.923211807 | AB4: =$Z4*$Y4/$X4/$R$4/12 -> 4.84539996 | AC4: =$Z4*$Y4/$X4/$R$5/12 -> 2.604752579 | AD4: =$Z4*$Y4/$X4/$R$6/12 -> 0.7040971816 | AE4: =$Z4*$Y4/$X4/$R$7/12 -> 4.023412467 | AF4: =$Z4*$Y4/$X4/$R$8/12 -> 2.166452867 | AG4: =$Z4*$Y4/$X4/$R$9/12 -> 1.33438613 | AH4: =$Z4*$Y4/$X4/$R$10/12 -> 0.741154928
B5: 1 | C5: =C6 -> 5 | D5: =D6 -> 5 | E5: =E6 -> 5 | F5: =F6 -> 5 | G5: =G6 -> 5 | I5: 1 | J5: =J6 -> 5 | K5: =K6 -> 5 | L5: =L6 -> 5 | M5: =M6 -> 5 | N5: =N6 -> 5 | Q5: 2 (7/1) ACSR | R5: 3460 | U5: Oak | V5: Branch | W5: 40 | X5: 3 | Y5: =X5^4*PI()/4 -> 63.61725124 | Z5: 8200 | AA5: =$Z5*$Y5/$X5/$R$3/12 -> 14.34712487 | AB5: =$Z5*$Y5/$X5/$R$4/12 -> 7.790643072 | AC5: =$Z5*$Y5/$X5/$R$5/12 -> 4.188033559 | AD5: =$Z5*$Y5/$X5/$R$6/12 -> 1.132077821 | AE5: =$Z5*$Y5/$X5/$R$7/12 -> 6.469016123 | AF5: =$Z5*$Y5/$X5/$R$8/12 -> 3.483316374 | AG5: =$Z5*$Y5/$X5/$R$9/12 -> 2.145483582 | AH5: =$Z5*$Y5/$X5/$R$10/12 -> 1.191660865
B6: 50 | C6: 5 | D6: 5 | E6: 5 | F6: 5 | G6: 5 | I6: 50 | J6: =C6+Spans!$C$10 -> 5 | K6: =D6+Spans!$C$10 -> 5 | L6: =E6+Spans!$C$10 -> 5 | M6: =F6+Spans!$C$10 -> 5 | N6: =G6+Spans!$C$10 -> 5 | Q6: 715.5 AAC | R6: 12800 | U6: Blue Gum / Eucalyptus | V6: Branch | W6: 51 | X6: 3 | Y6: =X6^4*PI()/4 -> 63.61725124 | Z6: 19530 | AA6: =$Z6*$Y6/$X6/$R$3/12 -> 34.17065227 | AB6: =$Z6*$Y6/$X6/$R$4/12 -> 18.55503161 | AC6: =$Z6*$Y6/$X6/$R$5/12 -> 9.974670172 | AD6: =$Z6*$Y6/$X6/$R$6/12 -> 2.696278031 | AE6: =$Z6*$Y6/$X6/$R$7/12 -> 15.40730303 | AF6: =$Z6*$Y6/$X6/$R$8/12 -> 8.296240095 | AG6: =$Z6*$Y6/$X6/$R$9/12 -> 5.109913947 | AH6: =$Z6*$Y6/$X6/$R$10/12 -> 2.838187401
B7: 100 | C7: 5 | D7: 5 | E7: 5 | F7: 5 | G7: 5 | I7: 100 | J7: =C7+Spans!$C$10 -> 5 | K7: =D7+Spans!$C$10 -> 5 | L7: =E7+Spans!$C$10 -> 5 | M7: =F7+Spans!$C$10 -> 5 | N7: =G7+Spans!$C$10 -> 5 | Q7: #2 HD Cu XLPE | R7: 2240
B8: 150 | C8: 5 | D8: 5 | E8: 5 | F8: 5 | G8: 5 | I8: 150 | J8: =C8+Spans!$C$10 -> 5 | K8: =D8+Spans!$C$10 -> 5 | L8: =E8+Spans!$C$10 -> 5 | M8: =F8+Spans!$C$10 -> 5 | N8: =G8+Spans!$C$10 -> 5 | Q8: 1/0 ACSR XLPE | R8: 4160
B9: 200 | C9: 5 | D9: 5 | E9: 5 | F9: 5 | G9: 5 | I9: 200 | J9: =C9+Spans!$C$10 -> 5 | K9: =D9+Spans!$C$10 -> 5 | L9: =E9+Spans!$C$10 -> 5 | M9: =F9+Spans!$C$10 -> 5 | N9: =G9+Spans!$C$10 -> 5 | Q9: 397.5 AAC XLPE | R9: 6754
B10: 300 | C10: 5 | D10: 5 | E10: 5 | F10: 5 | G10: 5 | I10: 300 | J10: =C10+Spans!$C$10 -> 5 | K10: =D10+Spans!$C$10 -> 5 | L10: =E10+Spans!$C$10 -> 5 | M10: =F10+Spans!$C$10 -> 5 | N10: =G10+Spans!$C$10 -> 5 | Q10: 715.5 AAC XLPE | R10: 12160
B11: 400 | C11: 5 | D11: 5 | E11: 5 | F11: 5 | G11: 5 | I11: 400 | J11: =C11+Spans!$C$10 -> 5 | K11: =D11+Spans!$C$10 -> 5 | L11: =E11+Spans!$C$10 -> 5 | M11: =F11+Spans!$C$10 -> 5 | N11: =G11+Spans!$C$10 -> 5
B12: 500 | C12: 5 | D12: 5 | E12: 5 | F12: 5 | G12: 5 | I12: 500 | J12: =C12+Spans!$C$10 -> 5 | K12: =D12+Spans!$C$10 -> 5 | L12: =E12+Spans!$C$10 -> 5 | M12: =F12+Spans!$C$10 -> 5 | N12: =G12+Spans!$C$10 -> 5
B13: 1000 | C13: =C12 -> 5 | D13: =D12 -> 5 | E13: =E12 -> 5 | F13: =F12 -> 5 | G13: =G12 -> 5 | I13: 1000 | J13: =J12 -> 5 | K13: =K12 -> 5 | L13: =L12 -> 5 | M13: =M12 -> 5 | N13: =N12 -> 5
I15: TABLE | J15: 2
B16: FEA Table: | C16: Composite, #2 Cu XLPE, Pine | I16: Span Shape: | J16: 2 | K16: 3 | L16: 4 | M16: 5 | N16: 6
B17: Span | C17: Allowable Overstrike Length (ft) | I17: Span | J17: Adjusted Allowable Overstrike Length (ft)
B18: Len (ft) | C18: Tangent | D18: 45° Turn | E18: 90° Turn | F18: T-Tap | G18: X-Tap | I18: Len (ft) | J18: Tangent | K18: 45° Turn | L18: 90° Turn | M18: T-Tap | N18: X-Tap
B19: 1 | C19: =C20 -> 5 | D19: =D20 -> 5 | E19: =E20 -> 5 | F19: =F20 -> 5 | G19: =G20 -> 5 | I19: 1 | J19: =J20 -> 5 | K19: =K20 -> 5 | L19: =L20 -> 5 | M19: =M20 -> 5 | N19: =N20 -> 5
B20: 50 | C20: 5 | D20: 5 | E20: 5 | F20: 5 | G20: 5 | I20: 50 | J20: =C20+Spans!$C$10 -> 5 | K20: =D20+Spans!$C$10 -> 5 | L20: =E20+Spans!$C$10 -> 5 | M20: =F20+Spans!$C$10 -> 5 | N20: =G20+Spans!$C$10 -> 5
B21: 100 | C21: 5 | D21: 5 | E21: 5 | F21: 5 | G21: 5 | I21: 100 | J21: =C21+Spans!$C$10 -> 5 | K21: =D21+Spans!$C$10 -> 5 | L21: =E21+Spans!$C$10 -> 5 | M21: =F21+Spans!$C$10 -> 5 | N21: =G21+Spans!$C$10 -> 5
B22: 150 | C22: 5 | D22: 5 | E22: 5 | F22: 5 | G22: 5 | I22: 150 | J22: =C22+Spans!$C$10 -> 5 | K22: =D22+Spans!$C$10 -> 5 | L22: =E22+Spans!$C$10 -> 5 | M22: =F22+Spans!$C$10 -> 5 | N22: =G22+Spans!$C$10 -> 5
B23: 200 | C23: 5 | D23: 5 | E23: 5 | F23: 5 | G23: 5 | I23: 200 | J23: =C23+Spans!$C$10 -> 5 | K23: =D23+Spans!$C$10 -> 5 | L23: =E23+Spans!$C$10 -> 5 | M23: =F23+Spans!$C$10 -> 5 | N23: =G23+Spans!$C$10 -> 5
B24: 300 | C24: 5 | D24: 5 | E24: 5 | F24: 5 | G24: 5 | I24: 300 | J24: =C24+Spans!$C$10 -> 5 | K24: =D24+Spans!$C$10 -> 5 | L24: =E24+Spans!$C$10 -> 5 | M24: =F24+Spans!$C$10 -> 5 | N24: =G24+Spans!$C$10 -> 5
B25: 400 | C25: 5 | D25: 5 | E25: 5 | F25: 5 | G25: 5 | I25: 400 | J25: =C25+Spans!$C$10 -> 5 | K25: =D25+Spans!$C$10 -> 5 | L25: =E25+Spans!$C$10 -> 5 | M25: =F25+Spans!$C$10 -> 5 | N25: =G25+Spans!$C$10 -> 5
B26: 500 | C26: 5 | D26: 5 | E26: 5 | F26: 5 | G26: 5 | I26: 500 | J26: =C26+Spans!$C$10 -> 5 | K26: =D26+Spans!$C$10 -> 5 | L26: =E26+Spans!$C$10 -> 5 | M26: =F26+Spans!$C$10 -> 5 | N26: =G26+Spans!$C$10 -> 5
B27: 1000 | C27: =C26 -> 5 | D27: =D26 -> 5 | E27: =E26 -> 5 | F27: =F26 -> 5 | G27: =G26 -> 5 | I27: 1000 | J27: =J26 -> 5 | K27: =K26 -> 5 | L27: =L26 -> 5 | M27: =M26 -> 5 | N27: =N26 -> 5
I29: TABLE | J29: 3
B30: FEA Table: | C30: Composite, #2 Cu XLPE, Oak | I30: Span Shape: | J30: 2 | K30: 3 | L30: 4 | M30: 5 | N30: 6
B31: Span | C31: Allowable Overstrike Length (ft) | I31: Span | J31: Adjusted Allowable Overstrike Length (ft)
B32: Len (ft) | C32: Tangent | D32: 45° Turn | E32: 90° Turn | F32: T-Tap | G32: X-Tap | I32: Len (ft) | J32: Tangent | K32: 45° Turn | L32: 90° Turn | M32: T-Tap | N32: X-Tap
B33: 1 | C33: =C34 -> 17 | D33: =D34 -> 17 | E33: =E34 -> 17 | F33: =F34 -> 17 | G33: =G34 -> 17 | I33: 1 | J33: =J34 -> 17 | K33: =K34 -> 17 | L33: =L34 -> 17 | M33: =M34 -> 17 | N33: =N34 -> 17
B34: 50 | C34: 17 | D34: 17 | E34: 17 | F34: 17 | G34: 17 | I34: 50 | J34: =C34+Spans!$C$10 -> 17 | K34: =D34+Spans!$C$10 -> 17 | L34: =E34+Spans!$C$10 -> 17 | M34: =F34+Spans!$C$10 -> 17 | N34: =G34+Spans!$C$10 -> 17
B35: 100 | C35: 17 | D35: 17 | E35: 17 | F35: 17 | G35: 17 | I35: 100 | J35: =C35+Spans!$C$10 -> 17 | K35: =D35+Spans!$C$10 -> 17 | L35: =E35+Spans!$C$10 -> 17 | M35: =F35+Spans!$C$10 -> 17 | N35: =G35+Spans!$C$10 -> 17
B36: 150 | C36: 17 | D36: 17 | E36: 17 | F36: 17 | G36: 17 | I36: 150 | J36: =C36+Spans!$C$10 -> 17 | K36: =D36+Spans!$C$10 -> 17 | L36: =E36+Spans!$C$10 -> 17 | M36: =F36+Spans!$C$10 -> 17 | N36: =G36+Spans!$C$10 -> 17
B37: 200 | C37: 17 | D37: 17 | E37: 17 | F37: 17 | G37: 17 | I37: 200 | J37: =C37+Spans!$C$10 -> 17 | K37: =D37+Spans!$C$10 -> 17 | L37: =E37+Spans!$C$10 -> 17 | M37: =F37+Spans!$C$10 -> 17 | N37: =G37+Spans!$C$10 -> 17
B38: 300 | C38: 17 | D38: 17 | E38: 17 | F38: 17 | G38: 17 | I38: 300 | J38: =C38+Spans!$C$10 -> 17 | K38: =D38+Spans!$C$10 -> 17 | L38: =E38+Spans!$C$10 -> 17 | M38: =F38+Spans!$C$10 -> 17 | N38: =G38+Spans!$C$10 -> 17
B39: 400 | C39: 17 | D39: 17 | E39: 17 | F39: 17 | G39: 17 | I39: 400 | J39: =C39+Spans!$C$10 -> 17 | K39: =D39+Spans!$C$10 -> 17 | L39: =E39+Spans!$C$10 -> 17 | M39: =F39+Spans!$C$10 -> 17 | N39: =G39+Spans!$C$10 -> 17
B40: 500 | C40: 17 | D40: 17 | E40: 17 | F40: 17 | G40: 17 | I40: 500 | J40: =C40+Spans!$C$10 -> 17 | K40: =D40+Spans!$C$10 -> 17 | L40: =E40+Spans!$C$10 -> 17 | M40: =F40+Spans!$C$10 -> 17 | N40: =G40+Spans!$C$10 -> 17
B41: 1000 | C41: =C40 -> 17 | D41: =D40 -> 17 | E41: =E40 -> 17 | F41: =F40 -> 17 | G41: =G40 -> 17 | I41: 1000 | J41: =J40 -> 17 | K41: =K40 -> 17 | L41: =L40 -> 17 | M41: =M40 -> 17 | N41: =N40 -> 17
I43: TABLE | J43: 4
B44: FEA Table: | C44: Composite, #2 Cu XLPE, Blue Gum / Eucalyptus | I44: Span Shape: | J44: 2 | K44: 3 | L44: 4 | M44: 5 | N44: 6
B45: Span | C45: Allowable Overstrike Length (ft) | I45: Span | J45: Adjusted Allowable Overstrike Length (ft)
B46: Len (ft) | C46: Tangent | D46: 45° Turn | E46: 90° Turn | F46: T-Tap | G46: X-Tap | I46: Len (ft) | J46: Tangent | K46: 45° Turn | L46: 90° Turn | M46: T-Tap | N46: X-Tap
B47: 1 | C47: =C48 -> 17 | D47: =D48 -> 17 | E47: =E48 -> 17 | F47: =F48 -> 17 | G47: =G48 -> 17 | I47: 1 | J47: =J48 -> 17 | K47: =K48 -> 17 | L47: =L48 -> 17 | M47: =M48 -> 17 | N47: =N48 -> 17
B48: 50 | C48: 17 | D48: 17 | E48: 17 | F48: 17 | G48: 17 | I48: 50 | J48: =C48+Spans!$C$10 -> 17 | K48: =D48+Spans!$C$10 -> 17 | L48: =E48+Spans!$C$10 -> 17 | M48: =F48+Spans!$C$10 -> 17 | N48: =G48+Spans!$C$10 -> 17
B49: 100 | C49: 17 | D49: 17 | E49: 17 | F49: 17 | G49: 17 | I49: 100 | J49: =C49+Spans!$C$10 -> 17 | K49: =D49+Spans!$C$10 -> 17 | L49: =E49+Spans!$C$10 -> 17 | M49: =F49+Spans!$C$10 -> 17 | N49: =G49+Spans!$C$10 -> 17
B50: 150 | C50: 17 | D50: 17 | E50: 17 | F50: 17 | G50: 17 | I50: 150 | J50: =C50+Spans!$C$10 -> 17 | K50: =D50+Spans!$C$10 -> 17 | L50: =E50+Spans!$C$10 -> 17 | M50: =F50+Spans!$C$10 -> 17 | N50: =G50+Spans!$C$10 -> 17
B51: 200 | C51: 17 | D51: 17 | E51: 17 | F51: 17 | G51: 17 | I51: 200 | J51: =C51+Spans!$C$10 -> 17 | K51: =D51+Spans!$C$10 -> 17 | L51: =E51+Spans!$C$10 -> 17 | M51: =F51+Spans!$C$10 -> 17 | N51: =G51+Spans!$C$10 -> 17
B52: 300 | C52: 17 | D52: 17 | E52: 17 | F52: 17 | G52: 17 | I52: 300 | J52: =C52+Spans!$C$10 -> 17 | K52: =D52+Spans!$C$10 -> 17 | L52: =E52+Spans!$C$10 -> 17 | M52: =F52+Spans!$C$10 -> 17 | N52: =G52+Spans!$C$10 -> 17
B53: 400 | C53: 17 | D53: 17 | E53: 17 | F53: 17 | G53: 17 | I53: 400 | J53: =C53+Spans!$C$10 -> 17 | K53: =D53+Spans!$C$10 -> 17 | L53: =E53+Spans!$C$10 -> 17 | M53: =F53+Spans!$C$10 -> 17 | N53: =G53+Spans!$C$10 -> 17
B54: 500 | C54: 17 | D54: 17 | E54: 17 | F54: 17 | G54: 17 | I54: 500 | J54: =C54+Spans!$C$10 -> 17 | K54: =D54+Spans!$C$10 -> 17 | L54: =E54+Spans!$C$10 -> 17 | M54: =F54+Spans!$C$10 -> 17 | N54: =G54+Spans!$C$10 -> 17
B55: 1000 | C55: =C54 -> 17 | D55: =D54 -> 17 | E55: =E54 -> 17 | F55: =F54 -> 17 | G55: =G54 -> 17 | I55: 1000 | J55: =J54 -> 17 | K55: =K54 -> 17 | L55: =L54 -> 17 | M55: =M54 -> 17 | N55: =N54 -> 17
I57: TABLE | J57: 5
B58: FEA Table: | C58: Composite, 1/0 ACSR XLPE, Douglas Fir | I58: Span Shape: | J58: 2 | K58: 3 | L58: 4 | M58: 5 | N58: 6 | R58: =VLOOKUP(100, Table5, 6, FALSE) -> 4
B59: Span | C59: Allowable Overstrike Length (ft) | I59: Span | J59: Adjusted Allowable Overstrike Length (ft)
B60: Len (ft) | C60: Tangent | D60: 45° Turn | E60: 90° Turn | F60: T-Tap | G60: X-Tap | I60: Len (ft) | J60: Tangent | K60: 45° Turn | L60: 90° Turn | M60: T-Tap | N60: X-Tap
B61: 1 | C61: =C62 -> 5 | D61: =D62 -> 5 | E61: =E62 -> 5 | F61: =F62 -> 5 | G61: =G62 -> 3 | I61: 1 | J61: =J62 -> 5 | K61: =K62 -> 5 | L61: =L62 -> 5 | M61: =M62 -> 5 | N61: =N62 -> 3
B62: 50 | C62: 5 | D62: 5 | E62: 5 | F62: 5 | G62: 3 | I62: 50 | J62: =C62+Spans!$C$10 -> 5 | K62: =D62+Spans!$C$10 -> 5 | L62: =E62+Spans!$C$10 -> 5 | M62: =F62+Spans!$C$10 -> 5 | N62: =G62+Spans!$C$10 -> 3
B63: 100 | C63: 7 | D63: 7 | E63: 11 | F63: 12 | G63: 4 | I63: 100 | J63: =C63+Spans!$C$10 -> 7 | K63: =D63+Spans!$C$10 -> 7 | L63: =E63+Spans!$C$10 -> 11 | M63: =F63+Spans!$C$10 -> 12 | N63: =G63+Spans!$C$10 -> 4
B64: 150 | C64: 7 | D64: 11 | E64: 16 | F64: 13 | G64: 6 | I64: 150 | J64: =C64+Spans!$C$10 -> 7 | K64: =D64+Spans!$C$10 -> 11 | L64: =E64+Spans!$C$10 -> 16 | M64: =F64+Spans!$C$10 -> 13 | N64: =G64+Spans!$C$10 -> 6
B65: 200 | C65: 11 | D65: 16 | E65: 16 | F65: 13 | G65: 7 | I65: 200 | J65: =C65+Spans!$C$10 -> 11 | K65: =D65+Spans!$C$10 -> 16 | L65: =E65+Spans!$C$10 -> 16 | M65: =F65+Spans!$C$10 -> 13 | N65: =G65+Spans!$C$10 -> 7
B66: 300 | C66: 16 | D66: 16 | E66: 16 | F66: 15 | G66: 12 | I66: 300 | J66: =C66+Spans!$C$10 -> 16 | K66: =D66+Spans!$C$10 -> 16 | L66: =E66+Spans!$C$10 -> 16 | M66: =F66+Spans!$C$10 -> 15 | N66: =G66+Spans!$C$10 -> 12
B67: 400 | C67: 19 | D67: 16 | E67: 18 | F67: 15 | G67: 17 | I67: 400 | J67: =C67+Spans!$C$10 -> 19 | K67: =D67+Spans!$C$10 -> 16 | L67: =E67+Spans!$C$10 -> 18 | M67: =F67+Spans!$C$10 -> 15 | N67: =G67+Spans!$C$10 -> 17
B68: 500 | C68: 21 | D68: 16 | E68: 22 | F68: 17 | G68: 18 | I68: 500 | J68: =C68+Spans!$C$10 -> 21 | K68: =D68+Spans!$C$10 -> 16 | L68: =E68+Spans!$C$10 -> 22 | M68: =F68+Spans!$C$10 -> 17 | N68: =G68+Spans!$C$10 -> 18
B69: 1000 | C69: =C68 -> 21 | D69: =D68 -> 16 | E69: =E68 -> 22 | F69: =F68 -> 17 | G69: =G68 -> 18 | I69: 1000 | J69: =J68 -> 21 | K69: =K68 -> 16 | L69: =L68 -> 22 | M69: =M68 -> 17 | N69: =N68 -> 18
I71: TABLE | J71: 6
B72: FEA Table: | C72: Composite, 1/0 ACSR XLPE, Pine | I72: Span Shape: | J72: 2 | K72: 3 | L72: 4 | M72: 5 | N72: 6
B73: Span | C73: Allowable Overstrike Length (ft) | I73: Span | J73: Adjusted Allowable Overstrike Length (ft)
B74: Len (ft) | C74: Tangent | D74: 45° Turn | E74: 90° Turn | F74: T-Tap | G74: X-Tap | I74: Len (ft) | J74: Tangent | K74: 45° Turn | L74: 90° Turn | M74: T-Tap | N74: X-Tap
B75: 1 | C75: =C76 -> 6 | D75: =D76 -> 6 | E75: =E76 -> 8 | F75: =F76 -> 7 | G75: =G76 -> 3 | I75: 1 | J75: =J76 -> 6 | K75: =K76 -> 6 | L75: =L76 -> 8 | M75: =M76 -> 7 | N75: =N76 -> 3
B76: 50 | C76: 6 | D76: 6 | E76: 8 | F76: 7 | G76: 3 | I76: 50 | J76: =C76+Spans!$C$10 -> 6 | K76: =D76+Spans!$C$10 -> 6 | L76: =E76+Spans!$C$10 -> 8 | M76: =F76+Spans!$C$10 -> 7 | N76: =G76+Spans!$C$10 -> 3
B77: 100 | C77: 10 | D77: 10 | E77: 13 | F77: 15 | G77: 8 | I77: 100 | J77: =C77+Spans!$C$10 -> 10 | K77: =D77+Spans!$C$10 -> 10 | L77: =E77+Spans!$C$10 -> 13 | M77: =F77+Spans!$C$10 -> 15 | N77: =G77+Spans!$C$10 -> 8
B78: 150 | C78: 15 | D78: 15 | E78: 18 | F78: 16 | G78: 11 | I78: 150 | J78: =C78+Spans!$C$10 -> 15 | K78: =D78+Spans!$C$10 -> 15 | L78: =E78+Spans!$C$10 -> 18 | M78: =F78+Spans!$C$10 -> 16 | N78: =G78+Spans!$C$10 -> 11
B79: 200 | C79: 17 | D79: 20 | E79: 20 | F79: 18 | G79: 16 | I79: 200 | J79: =C79+Spans!$C$10 -> 17 | K79: =D79+Spans!$C$10 -> 20 | L79: =E79+Spans!$C$10 -> 20 | M79: =F79+Spans!$C$10 -> 18 | N79: =G79+Spans!$C$10 -> 16
B80: 300 | C80: 22 | D80: 22 | E80: 21 | F80: 20 | G80: 20 | I80: 300 | J80: =C80+Spans!$C$10 -> 22 | K80: =D80+Spans!$C$10 -> 22 | L80: =E80+Spans!$C$10 -> 21 | M80: =F80+Spans!$C$10 -> 20 | N80: =G80+Spans!$C$10 -> 20
B81: 400 | C81: 27 | D81: 23 | E81: 22 | F81: 21 | G81: 23 | I81: 400 | J81: =C81+Spans!$C$10 -> 27 | K81: =D81+Spans!$C$10 -> 23 | L81: =E81+Spans!$C$10 -> 22 | M81: =F81+Spans!$C$10 -> 21 | N81: =G81+Spans!$C$10 -> 23
B82: 500 | C82: 32 | D82: 27 | E82: 27 | F82: 22 | G82: 27 | I82: 500 | J82: =C82+Spans!$C$10 -> 32 | K82: =D82+Spans!$C$10 -> 27 | L82: =E82+Spans!$C$10 -> 27 | M82: =F82+Spans!$C$10 -> 22 | N82: =G82+Spans!$C$10 -> 27
B83: 1000 | C83: =C82 -> 32 | D83: =D82 -> 27 | E83: =E82 -> 27 | F83: =F82 -> 22 | G83: =G82 -> 27 | I83: 1000 | J83: =J82 -> 32 | K83: =K82 -> 27 | L83: =L82 -> 27 | M83: =M82 -> 22 | N83: =N82 -> 27
I85: TABLE | J85: 7
B86: FEA Table: | C86: Composite, 1/0 ACSR XLPE, Oak | I86: Span Shape: | J86: 2 | K86: 3 | L86: 4 | M86: 5 | N86: 6
B87: Span | C87: Allowable Overstrike Length (ft) | I87: Span | J87: Adjusted Allowable Overstrike Length (ft)
B88: Len (ft) | C88: Tangent | D88: 45° Turn | E88: 90° Turn | F88: T-Tap | G88: X-Tap | I88: Len (ft) | J88: Tangent | K88: 45° Turn | L88: 90° Turn | M88: T-Tap | N88: X-Tap
B89: 1 | C89: =C90 -> 24 | D89: =D90 -> 24 | E89: =E90 -> 24 | F89: =F90 -> 24 | G89: =G90 -> 24 | I89: 1 | J89: =J90 -> 24 | K89: =K90 -> 24 | L89: =L90 -> 24 | M89: =M90 -> 24 | N89: =N90 -> 24
B90: 50 | C90: 24 | D90: 24 | E90: 24 | F90: 24 | G90: 24 | I90: 50 | J90: =C90+Spans!$C$10 -> 24 | K90: =D90+Spans!$C$10 -> 24 | L90: =E90+Spans!$C$10 -> 24 | M90: =F90+Spans!$C$10 -> 24 | N90: =G90+Spans!$C$10 -> 24
B91: 100 | C91: 24 | D91: 24 | E91: 24 | F91: 24 | G91: 24 | I91: 100 | J91: =C91+Spans!$C$10 -> 24 | K91: =D91+Spans!$C$10 -> 24 | L91: =E91+Spans!$C$10 -> 24 | M91: =F91+Spans!$C$10 -> 24 | N91: =G91+Spans!$C$10 -> 24
B92: 150 | C92: 24 | D92: 24 | E92: 24 | F92: 24 | G92: 24 | I92: 150 | J92: =C92+Spans!$C$10 -> 24 | K92: =D92+Spans!$C$10 -> 24 | L92: =E92+Spans!$C$10 -> 24 | M92: =F92+Spans!$C$10 -> 24 | N92: =G92+Spans!$C$10 -> 24
B93: 200 | C93: 24 | D93: 24 | E93: 24 | F93: 24 | G93: 24 | I93: 200 | J93: =C93+Spans!$C$10 -> 24 | K93: =D93+Spans!$C$10 -> 24 | L93: =E93+Spans!$C$10 -> 24 | M93: =F93+Spans!$C$10 -> 24 | N93: =G93+Spans!$C$10 -> 24
B94: 300 | C94: 28 | D94: 28 | E94: 24 | F94: 24 | G94: 24 | I94: 300 | J94: =C94+Spans!$C$10 -> 28 | K94: =D94+Spans!$C$10 -> 28 | L94: =E94+Spans!$C$10 -> 24 | M94: =F94+Spans!$C$10 -> 24 | N94: =G94+Spans!$C$10 -> 24
B95: 400 | C95: 30 | D95: 30 | E95: 27 | F95: 27 | G95: 24 | I95: 400 | J95: =C95+Spans!$C$10 -> 30 | K95: =D95+Spans!$C$10 -> 30 | L95: =E95+Spans!$C$10 -> 27 | M95: =F95+Spans!$C$10 -> 27 | N95: =G95+Spans!$C$10 -> 24
B96: 500 | C96: 30 | D96: 30 | E96: 30 | F96: 30 | G96: 30 | I96: 500 | J96: =C96+Spans!$C$10 -> 30 | K96: =D96+Spans!$C$10 -> 30 | L96: =E96+Spans!$C$10 -> 30 | M96: =F96+Spans!$C$10 -> 30 | N96: =G96+Spans!$C$10 -> 30
B97: 1000 | C97: =C96 -> 30 | D97: =D96 -> 30 | E97: =E96 -> 30 | F97: =F96 -> 30 | G97: =G96 -> 30 | I97: 1000 | J97: =J96 -> 30 | K97: =K96 -> 30 | L97: =L96 -> 30 | M97: =M96 -> 30 | N97: =N96 -> 30
I99: TABLE | J99: 8
B100: FEA Table: | C100: Composite, 1/0 ACSR XLPE, Blue Gum / Eucalyptus | I100: Span Shape: | J100: 2 | K100: 3 | L100: 4 | M100: 5 | N100: 6
B101: Span | C101: Allowable Overstrike Length (ft) | I101: Span | J101: Adjusted Allowable Overstrike Length (ft)
B102: Len (ft) | C102: Tangent | D102: 45° Turn | E102: 90° Turn | F102: T-Tap | G102: X-Tap | I102: Len (ft) | J102: Tangent | K102: 45° Turn | L102: 90° Turn | M102: T-Tap | N102: X-Tap
B103: 1 | C103: =C104 -> 17 | D103: =D104 -> 17 | E103: =E104 -> 17 | F103: =F104 -> 17 | G103: =G104 -> 17 | I103: 1 | J103: =J104 -> 17 | K103: =K104 -> 17 | L103: =L104 -> 17 | M103: =M104 -> 17 | N103: =N104 -> 17
B104: 50 | C104: 17 | D104: 17 | E104: 17 | F104: 17 | G104: 17 | I104: 50 | J104: =C104+Spans!$C$10 -> 17 | K104: =D104+Spans!$C$10 -> 17 | L104: =E104+Spans!$C$10 -> 17 | M104: =F104+Spans!$C$10 -> 17 | N104: =G104+Spans!$C$10 -> 17
B105: 100 | C105: 17 | D105: 17 | E105: 17 | F105: 17 | G105: 17 | I105: 100 | J105: =C105+Spans!$C$10 -> 17 | K105: =D105+Spans!$C$10 -> 17 | L105: =E105+Spans!$C$10 -> 17 | M105: =F105+Spans!$C$10 -> 17 | N105: =G105+Spans!$C$10 -> 17
B106: 150 | C106: 17 | D106: 17 | E106: 17 | F106: 17 | G106: 17 | I106: 150 | J106: =C106+Spans!$C$10 -> 17 | K106: =D106+Spans!$C$10 -> 17 | L106: =E106+Spans!$C$10 -> 17 | M106: =F106+Spans!$C$10 -> 17 | N106: =G106+Spans!$C$10 -> 17
B107: 200 | C107: 17 | D107: 17 | E107: 17 | F107: 17 | G107: 17 | I107: 200 | J107: =C107+Spans!$C$10 -> 17 | K107: =D107+Spans!$C$10 -> 17 | L107: =E107+Spans!$C$10 -> 17 | M107: =F107+Spans!$C$10 -> 17 | N107: =G107+Spans!$C$10 -> 17
B108: 300 | C108: 17 | D108: 17 | E108: 17 | F108: 17 | G108: 17 | I108: 300 | J108: =C108+Spans!$C$10 -> 17 | K108: =D108+Spans!$C$10 -> 17 | L108: =E108+Spans!$C$10 -> 17 | M108: =F108+Spans!$C$10 -> 17 | N108: =G108+Spans!$C$10 -> 17
B109: 400 | C109: 17 | D109: 17 | E109: 17 | F109: 17 | G109: 17 | I109: 400 | J109: =C109+Spans!$C$10 -> 17 | K109: =D109+Spans!$C$10 -> 17 | L109: =E109+Spans!$C$10 -> 17 | M109: =F109+Spans!$C$10 -> 17 | N109: =G109+Spans!$C$10 -> 17
B110: 500 | C110: 17 | D110: 17 | E110: 17 | F110: 17 | G110: 17 | I110: 500 | J110: =C110+Spans!$C$10 -> 17 | K110: =D110+Spans!$C$10 -> 17 | L110: =E110+Spans!$C$10 -> 17 | M110: =F110+Spans!$C$10 -> 17 | N110: =G110+Spans!$C$10 -> 17
B111: 1000 | C111: =C110 -> 17 | D111: =D110 -> 17 | E111: =E110 -> 17 | F111: =F110 -> 17 | G111: =G110 -> 17 | I111: 1000 | J111: =J110 -> 17 | K111: =K110 -> 17 | L111: =L110 -> 17 | M111: =M110 -> 17 | N111: =N110 -> 17
I113: TABLE | J113: 9
B114: FEA Table: | C114: Composite, 397.5 AAC XLPE, Douglas Fir | I114: Span Shape: | J114: 2 | K114: 3 | L114: 4 | M114: 5 | N114: 6
B115: Span | C115: Allowable Overstrike Length (ft) | I115: Span | J115: Adjusted Allowable Overstrike Length (ft)
B116: Len (ft) | C116: Tangent | D116: 45° Turn | E116: 90° Turn | F116: T-Tap | G116: X-Tap | I116: Len (ft) | J116: Tangent | K116: 45° Turn | L116: 90° Turn | M116: T-Tap | N116: X-Tap
B117: 1 | C117: =C118 -> 16 | D117: =D118 -> 16 | E117: =E118 -> 20 | F117: =F118 -> 24 | G117: =G118 -> 10 | I117: 1 | J117: =J118 -> 16 | K117: =K118 -> 16 | L117: =L118 -> 20 | M117: =M118 -> 24 | N117: =N118 -> 10
B118: 50 | C118: 16 | D118: 16 | E118: 20 | F118: 24 | G118: 10 | I118: 50 | J118: =C118+Spans!$C$10 -> 16 | K118: =D118+Spans!$C$10 -> 16 | L118: =E118+Spans!$C$10 -> 20 | M118: =F118+Spans!$C$10 -> 24 | N118: =G118+Spans!$C$10 -> 10
B119: 100 | C119: 16 | D119: 23 | E119: 30 | F119: 25 | G119: 14 | I119: 100 | J119: =C119+Spans!$C$10 -> 16 | K119: =D119+Spans!$C$10 -> 23 | L119: =E119+Spans!$C$10 -> 30 | M119: =F119+Spans!$C$10 -> 25 | N119: =G119+Spans!$C$10 -> 14
B120: 150 | C120: 21 | D120: 26 | E120: 30 | F120: 25 | G120: 24 | I120: 150 | J120: =C120+Spans!$C$10 -> 21 | K120: =D120+Spans!$C$10 -> 26 | L120: =E120+Spans!$C$10 -> 30 | M120: =F120+Spans!$C$10 -> 25 | N120: =G120+Spans!$C$10 -> 24
B121: 200 | C121: 26 | D121: 31 | E121: 30 | F121: 25 | G121: 26 | I121: 200 | J121: =C121+Spans!$C$10 -> 26 | K121: =D121+Spans!$C$10 -> 31 | L121: =E121+Spans!$C$10 -> 30 | M121: =F121+Spans!$C$10 -> 25 | N121: =G121+Spans!$C$10 -> 26
B122: 300 | C122: 31 | D122: 31 | E122: 30 | F122: 27 | G122: 29 | I122: 300 | J122: =C122+Spans!$C$10 -> 31 | K122: =D122+Spans!$C$10 -> 31 | L122: =E122+Spans!$C$10 -> 30 | M122: =F122+Spans!$C$10 -> 27 | N122: =G122+Spans!$C$10 -> 29
B123: 400 | C123: 36 | D123: 34 | E123: 35 | F123: 30 | G123: 31 | I123: 400 | J123: =C123+Spans!$C$10 -> 36 | K123: =D123+Spans!$C$10 -> 34 | L123: =E123+Spans!$C$10 -> 35 | M123: =F123+Spans!$C$10 -> 30 | N123: =G123+Spans!$C$10 -> 31
B124: 500 | C124: 36 | D124: 34 | E124: 37 | F124: 34 | G124: 34 | I124: 500 | J124: =C124+Spans!$C$10 -> 36 | K124: =D124+Spans!$C$10 -> 34 | L124: =E124+Spans!$C$10 -> 37 | M124: =F124+Spans!$C$10 -> 34 | N124: =G124+Spans!$C$10 -> 34
B125: 1000 | C125: =C124 -> 36 | D125: =D124 -> 34 | E125: =E124 -> 37 | F125: =F124 -> 34 | G125: =G124 -> 34 | I125: 1000 | J125: =J124 -> 36 | K125: =K124 -> 34 | L125: =L124 -> 37 | M125: =M124 -> 34 | N125: =N124 -> 34
I127: TABLE | J127: 10
B128: FEA Table: | C128: Composite, 397.5 AAC XLPE, Pine | I128: Span Shape: | J128: 2 | K128: 3 | L128: 4 | M128: 5 | N128: 6
B129: Span | C129: Allowable Overstrike Length (ft) | I129: Span | J129: Adjusted Allowable Overstrike Length (ft)
B130: Len (ft) | C130: Tangent | D130: 45° Turn | E130: 90° Turn | F130: T-Tap | G130: X-Tap | I130: Len (ft) | J130: Tangent | K130: 45° Turn | L130: 90° Turn | M130: T-Tap | N130: X-Tap
B131: 1 | C131: =C132 -> 19 | D131: =D132 -> 19 | E131: =E132 -> 30 | F131: =F132 -> 28 | G131: =G132 -> 18 | I131: 1 | J131: =J132 -> 19 | K131: =K132 -> 19 | L131: =L132 -> 30 | M131: =M132 -> 28 | N131: =N132 -> 18
B132: 50 | C132: 19 | D132: 19 | E132: 30 | F132: 28 | G132: 18 | I132: 50 | J132: =C132+Spans!$C$10 -> 19 | K132: =D132+Spans!$C$10 -> 19 | L132: =E132+Spans!$C$10 -> 30 | M132: =F132+Spans!$C$10 -> 28 | N132: =G132+Spans!$C$10 -> 18
B133: 100 | C133: 21 | D133: 28 | E133: 35 | F133: 31 | G133: 20 | I133: 100 | J133: =C133+Spans!$C$10 -> 21 | K133: =D133+Spans!$C$10 -> 28 | L133: =E133+Spans!$C$10 -> 35 | M133: =F133+Spans!$C$10 -> 31 | N133: =G133+Spans!$C$10 -> 20
B134: 150 | C134: 26 | D134: 37 | E134: 36 | F134: 32 | G134: 27 | I134: 150 | J134: =C134+Spans!$C$10 -> 26 | K134: =D134+Spans!$C$10 -> 37 | L134: =E134+Spans!$C$10 -> 36 | M134: =F134+Spans!$C$10 -> 32 | N134: =G134+Spans!$C$10 -> 27
B135: 200 | C135: 32 | D135: 41 | E135: 37 | F135: 34 | G135: 32 | I135: 200 | J135: =C135+Spans!$C$10 -> 32 | K135: =D135+Spans!$C$10 -> 41 | L135: =E135+Spans!$C$10 -> 37 | M135: =F135+Spans!$C$10 -> 34 | N135: =G135+Spans!$C$10 -> 32
B136: 300 | C136: 36 | D136: 41 | E136: 39 | F136: 35 | G136: 33 | I136: 300 | J136: =C136+Spans!$C$10 -> 36 | K136: =D136+Spans!$C$10 -> 41 | L136: =E136+Spans!$C$10 -> 39 | M136: =F136+Spans!$C$10 -> 35 | N136: =G136+Spans!$C$10 -> 33
B137: 400 | C137: 42 | D137: 42 | E137: 42 | F137: 37 | G137: 37 | I137: 400 | J137: =C137+Spans!$C$10 -> 42 | K137: =D137+Spans!$C$10 -> 42 | L137: =E137+Spans!$C$10 -> 42 | M137: =F137+Spans!$C$10 -> 37 | N137: =G137+Spans!$C$10 -> 37
B138: 500 | C138: 46 | D138: 47 | E138: 43 | F138: 40 | G138: 42 | I138: 500 | J138: =C138+Spans!$C$10 -> 46 | K138: =D138+Spans!$C$10 -> 47 | L138: =E138+Spans!$C$10 -> 43 | M138: =F138+Spans!$C$10 -> 40 | N138: =G138+Spans!$C$10 -> 42
B139: 1000 | C139: =C138 -> 46 | D139: =D138 -> 47 | E139: =E138 -> 43 | F139: =F138 -> 40 | G139: =G138 -> 42 | I139: 1000 | J139: =J138 -> 46 | K139: =K138 -> 47 | L139: =L138 -> 43 | M139: =M138 -> 40 | N139: =N138 -> 42
I141: TABLE | J141: 11
B142: FEA Table: | C142: Composite, 397.5 AAC XLPE, Oak | I142: Span Shape: | J142: 2 | K142: 3 | L142: 4 | M142: 5 | N142: 6
B143: Span | C143: Allowable Overstrike Length (ft) | I143: Span | J143: Adjusted Allowable Overstrike Length (ft)
B144: Len (ft) | C144: Tangent | D144: 45° Turn | E144: 90° Turn | F144: T-Tap | G144: X-Tap | I144: Len (ft) | J144: Tangent | K144: 45° Turn | L144: 90° Turn | M144: T-Tap | N144: X-Tap
B145: 1 | C145: =C146 -> 30 | D145: =D146 -> 30 | E145: =E146 -> 30 | F145: =F146 -> 28 | G145: =G146 -> 28 | I145: 1 | J145: =J146 -> 30 | K145: =K146 -> 30 | L145: =L146 -> 30 | M145: =M146 -> 28 | N145: =N146 -> 28
B146: 50 | C146: 30 | D146: 30 | E146: 30 | F146: 28 | G146: 28 | I146: 50 | J146: =C146+Spans!$C$10 -> 30 | K146: =D146+Spans!$C$10 -> 30 | L146: =E146+Spans!$C$10 -> 30 | M146: =F146+Spans!$C$10 -> 28 | N146: =G146+Spans!$C$10 -> 28
B147: 100 | C147: 30 | D147: 30 | E147: 30 | F147: 28 | G147: 30 | I147: 100 | J147: =C147+Spans!$C$10 -> 30 | K147: =D147+Spans!$C$10 -> 30 | L147: =E147+Spans!$C$10 -> 30 | M147: =F147+Spans!$C$10 -> 28 | N147: =G147+Spans!$C$10 -> 30
B148: 150 | C148: 30 | D148: 30 | E148: 30 | F148: 30 | G148: 30 | I148: 150 | J148: =C148+Spans!$C$10 -> 30 | K148: =D148+Spans!$C$10 -> 30 | L148: =E148+Spans!$C$10 -> 30 | M148: =F148+Spans!$C$10 -> 30 | N148: =G148+Spans!$C$10 -> 30
B149: 200 | C149: 30 | D149: 30 | E149: 30 | F149: 30 | G149: 30 | I149: 200 | J149: =C149+Spans!$C$10 -> 30 | K149: =D149+Spans!$C$10 -> 30 | L149: =E149+Spans!$C$10 -> 30 | M149: =F149+Spans!$C$10 -> 30 | N149: =G149+Spans!$C$10 -> 30
B150: 300 | C150: 30 | D150: 30 | E150: 30 | F150: 30 | G150: 30 | I150: 300 | J150: =C150+Spans!$C$10 -> 30 | K150: =D150+Spans!$C$10 -> 30 | L150: =E150+Spans!$C$10 -> 30 | M150: =F150+Spans!$C$10 -> 30 | N150: =G150+Spans!$C$10 -> 30
B151: 400 | C151: 30 | D151: 30 | E151: 30 | F151: 30 | G151: 30 | I151: 400 | J151: =C151+Spans!$C$10 -> 30 | K151: =D151+Spans!$C$10 -> 30 | L151: =E151+Spans!$C$10 -> 30 | M151: =F151+Spans!$C$10 -> 30 | N151: =G151+Spans!$C$10 -> 30
B152: 500 | C152: 30 | D152: 30 | E152: 30 | F152: 30 | G152: 30 | I152: 500 | J152: =C152+Spans!$C$10 -> 30 | K152: =D152+Spans!$C$10 -> 30 | L152: =E152+Spans!$C$10 -> 30 | M152: =F152+Spans!$C$10 -> 30 | N152: =G152+Spans!$C$10 -> 30
B153: 1000 | C153: =C152 -> 30 | D153: =D152 -> 30 | E153: =E152 -> 30 | F153: =F152 -> 30 | G153: =G152 -> 30 | I153: 1000 | J153: =J152 -> 30 | K153: =K152 -> 30 | L153: =L152 -> 30 | M153: =M152 -> 30 | N153: =N152 -> 30
I155: TABLE | J155: 12
B156: FEA Table: | C156: Composite, 397.5 AAC XLPE, Blue Gum / Eucalyptus | I156: Span Shape: | J156: 2 | K156: 3 | L156: 4 | M156: 5 | N156: 6
B157: Span | C157: Allowable Overstrike Length (ft) | I157: Span | J157: Adjusted Allowable Overstrike Length (ft)
B158: Len (ft) | C158: Tangent | D158: 45° Turn | E158: 90° Turn | F158: T-Tap | G158: X-Tap | I158: Len (ft) | J158: Tangent | K158: 45° Turn | L158: 90° Turn | M158: T-Tap | N158: X-Tap
B159: 1 | C159: =C160 -> 30 | D159: =D160 -> 30 | E159: =E160 -> 30 | F159: =F160 -> 28 | G159: =G160 -> 28 | I159: 1 | J159: =J160 -> 30 | K159: =K160 -> 30 | L159: =L160 -> 30 | M159: =M160 -> 28 | N159: =N160 -> 28
B160: 50 | C160: 30 | D160: 30 | E160: 30 | F160: 28 | G160: 28 | I160: 50 | J160: =C160+Spans!$C$10 -> 30 | K160: =D160+Spans!$C$10 -> 30 | L160: =E160+Spans!$C$10 -> 30 | M160: =F160+Spans!$C$10 -> 28 | N160: =G160+Spans!$C$10 -> 28
B161: 100 | C161: 30 | D161: 30 | E161: 30 | F161: 28 | G161: 30 | I161: 100 | J161: =C161+Spans!$C$10 -> 30 | K161: =D161+Spans!$C$10 -> 30 | L161: =E161+Spans!$C$10 -> 30 | M161: =F161+Spans!$C$10 -> 28 | N161: =G161+Spans!$C$10 -> 30
B162: 150 | C162: 30 | D162: 30 | E162: 30 | F162: 30 | G162: 30 | I162: 150 | J162: =C162+Spans!$C$10 -> 30 | K162: =D162+Spans!$C$10 -> 30 | L162: =E162+Spans!$C$10 -> 30 | M162: =F162+Spans!$C$10 -> 30 | N162: =G162+Spans!$C$10 -> 30
B163: 200 | C163: 30 | D163: 30 | E163: 30 | F163: 30 | G163: 30 | I163: 200 | J163: =C163+Spans!$C$10 -> 30 | K163: =D163+Spans!$C$10 -> 30 | L163: =E163+Spans!$C$10 -> 30 | M163: =F163+Spans!$C$10 -> 30 | N163: =G163+Spans!$C$10 -> 30
B164: 300 | C164: 30 | D164: 30 | E164: 30 | F164: 30 | G164: 30 | I164: 300 | J164: =C164+Spans!$C$10 -> 30 | K164: =D164+Spans!$C$10 -> 30 | L164: =E164+Spans!$C$10 -> 30 | M164: =F164+Spans!$C$10 -> 30 | N164: =G164+Spans!$C$10 -> 30
B165: 400 | C165: 30 | D165: 30 | E165: 30 | F165: 30 | G165: 30 | I165: 400 | J165: =C165+Spans!$C$10 -> 30 | K165: =D165+Spans!$C$10 -> 30 | L165: =E165+Spans!$C$10 -> 30 | M165: =F165+Spans!$C$10 -> 30 | N165: =G165+Spans!$C$10 -> 30
B166: 500 | C166: 30 | D166: 30 | E166: 30 | F166: 30 | G166: 30 | I166: 500 | J166: =C166+Spans!$C$10 -> 30 | K166: =D166+Spans!$C$10 -> 30 | L166: =E166+Spans!$C$10 -> 30 | M166: =F166+Spans!$C$10 -> 30 | N166: =G166+Spans!$C$10 -> 30
B167: 1000 | C167: =C166 -> 30 | D167: =D166 -> 30 | E167: =E166 -> 30 | F167: =F166 -> 30 | G167: =G166 -> 30 | I167: 1000 | J167: =J166 -> 30 | K167: =K166 -> 30 | L167: =L166 -> 30 | M167: =M166 -> 30 | N167: =N166 -> 30
I169: TABLE | J169: 13
B170: FEA Table: | C170: Composite, 715.5 AAC XLPE, Douglas Fir | I170: Span Shape: | J170: 2 | K170: 3 | L170: 4 | M170: 5 | N170: 6
B171: Span | C171: Allowable Overstrike Length (ft) | I171: Span | J171: Adjusted Allowable Overstrike Length (ft)
B172: Len (ft) | C172: Tangent | D172: 45° Turn | E172: 90° Turn | F172: T-Tap | G172: X-Tap | I172: Len (ft) | J172: Tangent | K172: 45° Turn | L172: 90° Turn | M172: T-Tap | N172: X-Tap
B173: 1 | C173: =C174 -> 50 | D173: =D174 -> 50 | E173: =E174 -> 50 | F173: =F174 -> 50 | G173: =G174 -> 50 | I173: 1 | J173: =J174 -> 50 | K173: =K174 -> 50 | L173: =L174 -> 50 | M173: =M174 -> 50 | N173: =N174 -> 50
B174: 50 | C174: 50 | D174: 50 | E174: 50 | F174: 50 | G174: 50 | I174: 50 | J174: =C174+Spans!$C$10 -> 50 | K174: =D174+Spans!$C$10 -> 50 | L174: =E174+Spans!$C$10 -> 50 | M174: =F174+Spans!$C$10 -> 50 | N174: =G174+Spans!$C$10 -> 50
B175: 100 | C175: 50 | D175: 50 | E175: 50 | F175: 50 | G175: 50 | I175: 100 | J175: =C175+Spans!$C$10 -> 50 | K175: =D175+Spans!$C$10 -> 50 | L175: =E175+Spans!$C$10 -> 50 | M175: =F175+Spans!$C$10 -> 50 | N175: =G175+Spans!$C$10 -> 50
B176: 150 | C176: 50 | D176: 50 | E176: 50 | F176: 50 | G176: 50 | I176: 150 | J176: =C176+Spans!$C$10 -> 50 | K176: =D176+Spans!$C$10 -> 50 | L176: =E176+Spans!$C$10 -> 50 | M176: =F176+Spans!$C$10 -> 50 | N176: =G176+Spans!$C$10 -> 50
B177: 200 | C177: 50 | D177: 50 | E177: 50 | F177: 50 | G177: 50 | I177: 200 | J177: =C177+Spans!$C$10 -> 50 | K177: =D177+Spans!$C$10 -> 50 | L177: =E177+Spans!$C$10 -> 50 | M177: =F177+Spans!$C$10 -> 50 | N177: =G177+Spans!$C$10 -> 50
B178: 300 | C178: 50 | D178: 50 | E178: 50 | F178: 50 | G178: 50 | I178: 300 | J178: =C178+Spans!$C$10 -> 50 | K178: =D178+Spans!$C$10 -> 50 | L178: =E178+Spans!$C$10 -> 50 | M178: =F178+Spans!$C$10 -> 50 | N178: =G178+Spans!$C$10 -> 50
B179: 400 | C179: 50 | D179: 50 | E179: 50 | F179: 50 | G179: 50 | I179: 400 | J179: =C179+Spans!$C$10 -> 50 | K179: =D179+Spans!$C$10 -> 50 | L179: =E179+Spans!$C$10 -> 50 | M179: =F179+Spans!$C$10 -> 50 | N179: =G179+Spans!$C$10 -> 50
B180: 500 | C180: 50 | D180: 50 | E180: 50 | F180: 50 | G180: 50 | I180: 500 | J180: =C180+Spans!$C$10 -> 50 | K180: =D180+Spans!$C$10 -> 50 | L180: =E180+Spans!$C$10 -> 50 | M180: =F180+Spans!$C$10 -> 50 | N180: =G180+Spans!$C$10 -> 50
B181: 1000 | C181: =C180 -> 50 | D181: =D180 -> 50 | E181: =E180 -> 50 | F181: =F180 -> 50 | G181: =G180 -> 50 | I181: 1000 | J181: =J180 -> 50 | K181: =K180 -> 50 | L181: =L180 -> 50 | M181: =M180 -> 50 | N181: =N180 -> 50
I183: TABLE | J183: 14
B184: FEA Table: | C184: Composite, 715.5 AAC XLPE, Pine | I184: Span Shape: | J184: 2 | K184: 3 | L184: 4 | M184: 5 | N184: 6
B185: Span | C185: Allowable Overstrike Length (ft) | I185: Span | J185: Adjusted Allowable Overstrike Length (ft)
B186: Len (ft) | C186: Tangent | D186: 45° Turn | E186: 90° Turn | F186: T-Tap | G186: X-Tap | I186: Len (ft) | J186: Tangent | K186: 45° Turn | L186: 90° Turn | M186: T-Tap | N186: X-Tap
B187: 1 | C187: =C188 -> 50 | D187: =D188 -> 50 | E187: =E188 -> 50 | F187: =F188 -> 50 | G187: =G188 -> 50 | I187: 1 | J187: =J188 -> 50 | K187: =K188 -> 50 | L187: =L188 -> 50 | M187: =M188 -> 50 | N187: =N188 -> 50
B188: 50 | C188: 50 | D188: 50 | E188: 50 | F188: 50 | G188: 50 | I188: 50 | J188: =C188+Spans!$C$10 -> 50 | K188: =D188+Spans!$C$10 -> 50 | L188: =E188+Spans!$C$10 -> 50 | M188: =F188+Spans!$C$10 -> 50 | N188: =G188+Spans!$C$10 -> 50
B189: 100 | C189: 50 | D189: 50 | E189: 50 | F189: 50 | G189: 50 | I189: 100 | J189: =C189+Spans!$C$10 -> 50 | K189: =D189+Spans!$C$10 -> 50 | L189: =E189+Spans!$C$10 -> 50 | M189: =F189+Spans!$C$10 -> 50 | N189: =G189+Spans!$C$10 -> 50
B190: 150 | C190: 50 | D190: 50 | E190: 50 | F190: 50 | G190: 50 | I190: 150 | J190: =C190+Spans!$C$10 -> 50 | K190: =D190+Spans!$C$10 -> 50 | L190: =E190+Spans!$C$10 -> 50 | M190: =F190+Spans!$C$10 -> 50 | N190: =G190+Spans!$C$10 -> 50
B191: 200 | C191: 50 | D191: 50 | E191: 50 | F191: 50 | G191: 50 | I191: 200 | J191: =C191+Spans!$C$10 -> 50 | K191: =D191+Spans!$C$10 -> 50 | L191: =E191+Spans!$C$10 -> 50 | M191: =F191+Spans!$C$10 -> 50 | N191: =G191+Spans!$C$10 -> 50
B192: 300 | C192: 50 | D192: 50 | E192: 50 | F192: 50 | G192: 50 | I192: 300 | J192: =C192+Spans!$C$10 -> 50 | K192: =D192+Spans!$C$10 -> 50 | L192: =E192+Spans!$C$10 -> 50 | M192: =F192+Spans!$C$10 -> 50 | N192: =G192+Spans!$C$10 -> 50
B193: 400 | C193: 50 | D193: 50 | E193: 50 | F193: 50 | G193: 50 | I193: 400 | J193: =C193+Spans!$C$10 -> 50 | K193: =D193+Spans!$C$10 -> 50 | L193: =E193+Spans!$C$10 -> 50 | M193: =F193+Spans!$C$10 -> 50 | N193: =G193+Spans!$C$10 -> 50
B194: 500 | C194: 50 | D194: 50 | E194: 50 | F194: 50 | G194: 50 | I194: 500 | J194: =C194+Spans!$C$10 -> 50 | K194: =D194+Spans!$C$10 -> 50 | L194: =E194+Spans!$C$10 -> 50 | M194: =F194+Spans!$C$10 -> 50 | N194: =G194+Spans!$C$10 -> 50
B195: 1000 | C195: =C194 -> 50 | D195: =D194 -> 50 | E195: =E194 -> 50 | F195: =F194 -> 50 | G195: =G194 -> 50 | I195: 1000 | J195: =J194 -> 50 | K195: =K194 -> 50 | L195: =L194 -> 50 | M195: =M194 -> 50 | N195: =N194 -> 50
I197: TABLE | J197: 15
B198: FEA Table: | C198: Composite, 715.5 AAC XLPE, Oak | I198: Span Shape: | J198: 2 | K198: 3 | L198: 4 | M198: 5 | N198: 6
B199: Span | C199: Allowable Overstrike Length (ft) | I199: Span | J199: Adjusted Allowable Overstrike Length (ft)
B200: Len (ft) | C200: Tangent | D200: 45° Turn | E200: 90° Turn | F200: T-Tap | G200: X-Tap | I200: Len (ft) | J200: Tangent | K200: 45° Turn | L200: 90° Turn | M200: T-Tap | N200: X-Tap
B201: 1 | C201: =C202 -> 30 | D201: =D202 -> 30 | E201: =E202 -> 30 | F201: =F202 -> 30 | G201: =G202 -> 30 | I201: 1 | J201: =J202 -> 30 | K201: =K202 -> 30 | L201: =L202 -> 30 | M201: =M202 -> 30 | N201: =N202 -> 30
B202: 50 | C202: 30 | D202: 30 | E202: 30 | F202: 30 | G202: 30 | I202: 50 | J202: =C202+Spans!$C$10 -> 30 | K202: =D202+Spans!$C$10 -> 30 | L202: =E202+Spans!$C$10 -> 30 | M202: =F202+Spans!$C$10 -> 30 | N202: =G202+Spans!$C$10 -> 30
B203: 100 | C203: 30 | D203: 30 | E203: 30 | F203: 30 | G203: 30 | I203: 100 | J203: =C203+Spans!$C$10 -> 30 | K203: =D203+Spans!$C$10 -> 30 | L203: =E203+Spans!$C$10 -> 30 | M203: =F203+Spans!$C$10 -> 30 | N203: =G203+Spans!$C$10 -> 30
B204: 150 | C204: 30 | D204: 30 | E204: 30 | F204: 30 | G204: 30 | I204: 150 | J204: =C204+Spans!$C$10 -> 30 | K204: =D204+Spans!$C$10 -> 30 | L204: =E204+Spans!$C$10 -> 30 | M204: =F204+Spans!$C$10 -> 30 | N204: =G204+Spans!$C$10 -> 30
B205: 200 | C205: 30 | D205: 30 | E205: 30 | F205: 30 | G205: 30 | I205: 200 | J205: =C205+Spans!$C$10 -> 30 | K205: =D205+Spans!$C$10 -> 30 | L205: =E205+Spans!$C$10 -> 30 | M205: =F205+Spans!$C$10 -> 30 | N205: =G205+Spans!$C$10 -> 30
B206: 300 | C206: 30 | D206: 30 | E206: 30 | F206: 30 | G206: 30 | I206: 300 | J206: =C206+Spans!$C$10 -> 30 | K206: =D206+Spans!$C$10 -> 30 | L206: =E206+Spans!$C$10 -> 30 | M206: =F206+Spans!$C$10 -> 30 | N206: =G206+Spans!$C$10 -> 30
B207: 400 | C207: 30 | D207: 30 | E207: 30 | F207: 30 | G207: 30 | I207: 400 | J207: =C207+Spans!$C$10 -> 30 | K207: =D207+Spans!$C$10 -> 30 | L207: =E207+Spans!$C$10 -> 30 | M207: =F207+Spans!$C$10 -> 30 | N207: =G207+Spans!$C$10 -> 30
B208: 500 | C208: 30 | D208: 30 | E208: 30 | F208: 30 | G208: 30 | I208: 500 | J208: =C208+Spans!$C$10 -> 30 | K208: =D208+Spans!$C$10 -> 30 | L208: =E208+Spans!$C$10 -> 30 | M208: =F208+Spans!$C$10 -> 30 | N208: =G208+Spans!$C$10 -> 30
B209: 1000 | C209: =C208 -> 30 | D209: =D208 -> 30 | E209: =E208 -> 30 | F209: =F208 -> 30 | G209: =G208 -> 30 | I209: 1000 | J209: =J208 -> 30 | K209: =K208 -> 30 | L209: =L208 -> 30 | M209: =M208 -> 30 | N209: =N208 -> 30
I211: TABLE | J211: 16
B212: FEA Table: | C212: Composite, 715.5 AAC XLPE, Blue Gum / Eucalyptus | I212: Span Shape: | J212: 2 | K212: 3 | L212: 4 | M212: 5 | N212: 6
B213: Span | C213: Allowable Overstrike Length (ft) | I213: Span | J213: Adjusted Allowable Overstrike Length (ft)
B214: Len (ft) | C214: Tangent | D214: 45° Turn | E214: 90° Turn | F214: T-Tap | G214: X-Tap | I214: Len (ft) | J214: Tangent | K214: 45° Turn | L214: 90° Turn | M214: T-Tap | N214: X-Tap
B215: 1 | C215: =C216 -> 30 | D215: =D216 -> 30 | E215: =E216 -> 30 | F215: =F216 -> 30 | G215: =G216 -> 30 | I215: 1 | J215: =J216 -> 30 | K215: =K216 -> 30 | L215: =L216 -> 30 | M215: =M216 -> 30 | N215: =N216 -> 30
... 320 more rows
